fUSD/lending_fUSD_20240616
["ID","MTS","AMOUNT","RATE_DAILY","PERIOD"]
[329641199,1718533847772,-8127.48489644,0.00016627,2]
[329641200,1718533847786,-319.78,0.00016698,2]
[329641201,1718533847800,-359.0,0.00016711,2]
[329641202,1718533847811,-502.19,0.00016711,2]
[329641203,1718533847822,-290.0,0.00016711,2]
[329641204,1718533847835,-1830.0,0.00016711,2]
[329641205,1718533847847,-442.0,0.00016711,2]
[329641206,1718533847865,-1664.302,0.00016711,2]
[329641207,1718533847878,-951.72380229,0.00016757,2]
[329641208,1718533847889,-300.0,0.00016867,2]
[329641209,1718533847901,-150.0,0.00016867,2]
[329641210,1718533847912,-353.88,0.00016867,2]
[329641211,1718533847940,-150.0,0.00016867,2]
[329641212,1718533847952,-1512.68153109,0.00016872,2]
[329641213,1718533847963,-600.0,0.00016922,2]
[329641214,1718533847976,-375.0,0.00016951,2]
[329641215,1718533847989,-285.308657,0.00016986,2]
[329641216,1718533848002,-2487.9464448,0.00017,2]
[329641217,1718533848021,-515.24,0.00017317,2]
[329641218,1718533848034,-417.77,0.00017317,2]
[329641219,1718533848046,-1703.12,0.00017317,2]
[329641220,1718533848060,-1000.0,0.00017415,2]
[329641221,1718533848071,-600.0,0.0001747,2]
[329641222,1718533848081,-8127.48489644,0.00017536,2]
[329641223,1718533848093,-3000.0,0.0001754,2]
[329641224,1718533848124,-155.123,0.00017588,2]
[329641225,1718533848135,-707.76,0.00017689,2]
[329641226,1718533848149,-300.0,0.00017689,2]
[329641227,1718533848164,-152.2,0.00017689,2]
[329641228,1718533848180,-150.0,0.00017689,2]
[329641229,1718533848205,-455.78,0.00017783,2]
[329641230,1718533848221,-150.347,0.00017791,2]
[329641231,1718533848259,-285.308657,0.00017808,2]
[329641232,1718533848273,-155.1687981,0.00018,2]
[329641234,1718533848291,-600.0,0.00018018,2]
[329641235,1718533848338,-1908.54,0.00018179,2]
[329641236,1718533848350,-951.72380229,0.00018186,2]
[329641237,1718533848363,-319.78,0.00018367,2]
[329641238,1718533848374,-8127.48489644,0.00018445,2]
[329641239,1718533848391,-301.89,0.00018493,2]
[329641240,1718533848403,-305.04,0.00018493,2]
[329641241,1718533848430,-2300.0,0.00018566,2]
[329641242,1718533848446,-500.0,0.00018566,2]
[329641243,1718533848460,-285.308657,0.0001863,2]
[329641244,1718533848493,-3000.0,0.0001879,2]
[329641245,1718533848509,-266.67102255,0.000189,2]
[329641246,1718533848523,-1000.0,0.00018998,2]
[329641247,1718533848560,-500.0,0.00019114,2]
[329641248,1718533848592,-2300.0,0.00019114,2]
[329641249,1718533848624,-600.0,0.00019114,2]
[329641250,1718533848636,-851.88,0.00019174,2]
[329641251,1718533848663,-865.04,0.00019174,2]
[329641252,1718533848694,-851.88,0.00019174,2]
[329641253,1718533848726,-848.27,0.00019174,2]
[329641254,1718533848749,-424.74,0.00019175,2]
[329641255,1718533848781,-500.0,0.00019178,2]
[329641256,1718533848803,-500.0,0.00019178,2]
[329641258,1718533848826,-500.0,0.00019178,2]
[329641262,1718533848867,-500.0,0.00019178,2]
[329641263,1718533848908,-500.0,0.00019178,2]
[329641264,1718533848942,-500.0,0.00019178,2]
[329641265,1718533848972,-500.0,0.00019178,2]
[329641266,1718533849019,-500.0,0.00019178,2]
[329641267,1718533849042,-500.0,0.00019178,2]
[329641268,1718533849125,-500.0,0.00019178,2]
[329641269,1718533849149,-500.0,0.00019178,2]
[329641270,1718533849173,-500.0,0.00019178,2]
[329641271,1718533849193,-500.0,0.00019178,2]
[329641272,1718533849223,-500.0,0.00019178,2]
[329641273,1718533849256,-500.0,0.00019178,2]
[329641274,1718533849280,-500.0,0.00019178,2]
[329641275,1718533849291,-500.0,0.00019178,2]
[329641276,1718533849308,-505.11955895,0.00019178,2]
[329641277,1718533849323,-500.0,0.00019178,2]
[329641278,1718533849340,-500.0,0.00019178,2]
[329641279,1718533849359,-500.0,0.00019178,2]
[329641280,1718533849376,-500.0,0.00019178,2]
[329641281,1718533849412,-500.0,0.00019178,2]
[329641282,1718533849440,-300.0,0.00019178,2]
[329641283,1718533849452,-500.0,0.00019178,2]
[329641284,1718533849468,-360.53,0.00019178,2]
[329641285,1718533849489,-300.0,0.00019288,2]
[329641286,1718533849514,-8127.48489644,0.00019355,2]
[329641287,1718533849566,-150.0,0.00019409,2]
[329641288,1718533849593,-164.41,0.00019409,2]
[329641289,1718533849605,-353.88,0.00019409,2]
[329641290,1718533849625,-150.0,0.00019409,2]
[329641291,1718533849650,-150.0,0.00019409,2]
[329641292,1718533849667,-150.0,0.00019409,2]
[329641293,1718533849681,-407.46,0.00019409,2]
[329641294,1718533849694,-527.06,0.00019409,2]
[329641295,1718533849708,-327.7,0.00019409,2]
[329641296,1718533849728,-423.19,0.00019409,2]
[329641297,1718533849764,-816.77,0.00019409,2]
[329641298,1718533849786,-285.308657,0.00019452,2]
[329641299,1718533849817,-500.0,0.0001952,2]
[329641300,1718533849834,-955.0,0.0001956,15]
[329641301,1718533849850,-150.5,0.00019562,15]
[329641302,1718533849893,-189.0,0.00019562,15]
[329641303,1718533849909,-955.0,0.0001957,15]
[329641304,1718533849922,-185.52,0.0001957,15]
[329641305,1718533849936,-150.5,0.00019572,15]
[329641306,1718533849952,-189.0,0.00019572,15]
[329641307,1718533849974,-955.0,0.0001958,15]
[329641308,1718533849991,-150.5,0.0001958,15]
[329641309,1718533850009,-150.5,0.00019582,15]
[329641310,1718533850028,-189.0,0.00019582,15]
[329641311,1718533850047,-951.72380229,0.00019614,2]
[329641312,1718533850069,-500.0,0.00019662,2]
[329641313,1718533850088,-2300.0,0.00019662,2]
[329641314,1718533850099,-161.475,0.00019711,2]
[329641315,1718533850111,-1830.0,0.00019711,2]
[329641316,1718533850123,-295.502,0.00019711,2]
[329641317,1718533850153,-1652.0,0.00019711,2]
[329641318,1718533850174,-1500.0,0.000199,7]
[329641319,1718533850187,-500.0,0.00019936,2]
[329641320,1718533850210,-1600.0,0.00019936,2]
[329641321,1718533850231,-155.0,0.0002,2]
[329641322,1718533850245,-291.0,0.0002,2]
[329641323,1718533850262,-160.0,0.0002,2]
[329641324,1718533850284,-160.0,0.0002,2]
[329641325,1718533850298,-250.78424391,0.0002,2]
[329641326,1718533850315,-20000.0,0.0002,2]
[329641327,1718533850334,-2221.96735919,0.0002,3]
[329641328,1718533850350,-155.34306562,0.0002,4]
[329641329,1718533850395,-216.93092618,0.0002,2]
[329641330,1718533850416,-5469.0,0.0002,2]
[329641331,1718533850428,-7252.67809991,0.0002,2]
[329641332,1718533850449,-150.0,0.0002,2]
[329641333,1718533850464,-150.0,0.0002,2]
[329641334,1718533850482,-319.78,0.00020037,2]
[329641335,1718533850500,-3000.0,0.0002004,2]
[329641336,1718533850527,-455.78,0.00020047,2]
[329641337,1718533850546,-423.19,0.00020194,2]
[329641338,1718533850767,-150.0,0.00020194,2]
[329641339,1718533850780,-527.06,0.00020194,2]
[329641340,1718533850809,-300.0,0.00020194,2]
[329641341,1718533850833,-150.0,0.00020194,2]
[329641342,1718533850858,-423.19,0.00020194,2]
[329641343,1718533850900,-164.41,0.00020194,2]
[329641344,1718533850918,-353.88,0.00020194,2]
[329641345,1718533850934,-150.0,0.00020194,2]
[329641346,1718533850948,-164.41,0.00020194,2]
[329641347,1718533850964,-527.06,0.00020194,2]
[329641348,1718533850987,-353.88,0.00020194,2]
[329641349,1718533851012,-150.0,0.00020194,2]
[329641350,1718533851031,-423.19,0.00020194,2]
[329641351,1718533851046,-422.77,0.00020205,2]
[329641352,1718533851071,-600.0,0.0002021,2]
[329641353,1718533851090,-2300.0,0.0002021,2]
[329641354,1718533851112,-500.0,0.0002021,2]
[329641355,1718533851128,-8127.48489644,0.00020264,2]
[329641356,1718533851140,-285.308657,0.00020274,2]
[329641358,1718533851178,-1600.0,0.00020484,2]
[329641360,1718533851194,-150.0,0.000205,2]
[329641362,1718533851215,-150.0,0.000205,2]
[329641363,1718533851240,-11745.0,0.000206,3]
[329641364,1718533851261,-35024.5556957,0.00020941,2]
[329641365,1718533851280,-5000.0,0.00021,2]
[329641366,1718533851299,-209.06037191,0.00021,5]
[329641367,1718533851313,-252.53,0.00021,2]
[329641368,1718533851337,-1250.0,0.00021,2]
[329641369,1718533851358,-300.0,0.00021,2]
[329641370,1718533851374,-150.0,0.00021,2]
[329641371,1718533851431,-150.0,0.00021,2]
[329641372,1718533851449,-1054.12,0.00021016,2]
[329641373,1718533851471,-846.38,0.00021016,2]
[329641374,1718533851520,-328.82,0.00021016,2]
[329641375,1718533851545,-423.19,0.00021016,2]
[329641376,1718533851559,-423.19,0.00021016,2]
[329641377,1718533851577,-500.0,0.00021032,2]
[329641378,1718533851599,-1600.0,0.00021032,2]
[329641379,1718533851617,-951.72380229,0.00021043,2]
[329641380,1718533851663,-285.308657,0.00021096,2]
[329641381,1718533851684,-11745.0,0.000211,5]
[329641382,1718533851711,-737.69382702,0.00021106,2]
[329641383,1718533851726,-8127.48489644,0.00021173,2]
[329641384,1718533851751,-187.69398301,0.00021206,3]
[329641385,1718533851764,-600.0,0.00021306,2]
[329641386,1718533851790,-2300.0,0.00021306,2]
[329641387,1718533851805,-500.0,0.00021306,2]
[329641388,1718533851818,-466.93519344,0.00021422,2]
[329641389,1718533851831,-150.0,0.000215,3]
[329641390,1718533851845,-150.0,0.000215,3]
[329641391,1718533851861,-1600.0,0.0002158,2]
[329641392,1718533851877,-150.0,0.00021778,2]
[329641393,1718533851898,-327.52,0.00021778,2]
[329641394,1718533851915,-430.85,0.00021778,2]
[329641395,1718533851927,-150.0,0.000218,2]
[329641396,1718533851959,-10000.0,0.00021817,2]
[329641397,1718533851978,-600.0,0.00021829,3]
[329641398,1718533851996,-1900.0,0.000219,7]
[329641399,1718533852012,-215.43919246,0.00021905,7]
[329641400,1718533852026,-408.00507792,0.00021907,2]
[329641401,1718533852041,-620183.37006883,0.00021915,2]
[329641402,1718533852127,-447.0,0.00016711,2]
[329641403,1718533852141,-820.53629767,0.00021915,2]
[329641404,1718533852165,-298.72,0.00021915,2]
[329641405,1718533852446,-25.92516983,0.00021915,2]
[329641406,1718533852695,-9001.20002044,0.00021915,2]
[329641407,1718533852710,-2999.27588856,0.00021915,2]
[329641408,1718533852733,-11054.34277879,0.00021915,2]
[329641409,1718533852899,-2275.39617289,0.00021915,2]
[329641410,1718533853031,-9752.56876707,0.00021915,2]
[329641411,1718533853056,-1795.36741921,0.00021915,2]
[329641412,1718533853115,-651.4744408,0.00021915,2]
[329641413,1718533853140,-6277.52029389,0.00021915,2]
[329641414,1718533853161,-1611.69,0.00021915,2]
[329641415,1718533853181,-25786.69067664,0.00021915,2]
[329641416,1718533853195,-803.65557084,0.00021915,2]
[329641417,1718533853208,-293.031248,0.00021915,2]
[329641418,1718533853221,-151.0,0.00021915,2]
[329641419,1718533853233,-185.158942,0.00021915,2]
[329641420,1718533853249,-151.0,0.00021915,2]
[329641421,1718533853263,-156.059096,0.00021915,2]
[329641422,1718533853283,-156.138713,0.00021915,2]
[329641423,1718533853303,-151.0,0.00021915,2]
[329641424,1718533853324,-151.0,0.00021915,2]
[329641425,1718533853354,-155.595506,0.00021915,2]
[329641426,1718533853377,-151.0,0.00021915,2]
[329641427,1718533853395,-154.538998,0.00021915,2]
[329641428,1718533853413,-151.0,0.00021915,2]
[329641429,1718533853431,-151.0,0.00021915,2]
[329641430,1718533853444,-151.0,0.00021915,2]
[329641431,1718533853455,-151.0,0.00021915,2]
[329641432,1718533853476,-162.780104,0.00021915,2]
[329641433,1718533853493,-151.0,0.00021915,2]
[329641434,1718533853509,-151.0,0.00021915,2]
[329641435,1718533853524,-151.0,0.00021915,2]
[329641436,1718533853538,-151.0,0.00021915,2]
[329641437,1718533853551,-159.740109,0.00021915,2]
[329641438,1718533853570,-154.648404,0.00021915,2]
[329641439,1718533853583,-151.0,0.00021915,2]
[329641440,1718533853601,-157.167975,0.00021915,2]
[329641441,1718533853613,-151.0,0.00021915,2]
[329641442,1718533853624,-151.0,0.00021915,2]
[329641443,1718533853635,-151.6604,0.00021915,2]
[329641444,1718533853656,-151.0,0.00021915,2]
[329641445,1718533853668,-158.826008,0.00021915,2]
[329641446,1718533853681,-152.463302,0.00021915,2]
[329641447,1718533853702,-151.0,0.00021915,2]
[329641448,1718533853717,-145.43580526,0.00021915,2]
[329641449,1718533853745,-7.10049074,0.00021915,2]
[329641450,1718533853756,-151.0,0.00021915,2]
[329641451,1718533853769,-151.0,0.00021915,2]
[329641452,1718533853791,-160.240986,0.00021915,2]
[329641453,1718533853819,-151.0,0.00021915,2]
[329641454,1718533853845,-151.0,0.00021915,2]
[329641455,1718533853868,-151.0,0.00021915,2]
[329641456,1718533853880,-151.0,0.00021915,2]
[329641457,1718533853892,-156.707561,0.00021915,2]
[329641458,1718533853904,-151.0,0.00021915,2]
[329641459,1718533853915,-266.86715831,0.00021916,2]
[329641460,1718533853941,-547.60981168,0.00021917,2]
[329641461,1718533853956,-500.65585014,0.00021917,2]
[329641462,1718533853972,-500.0,0.00021917,2]
[329641463,1718533853989,-500.0,0.00021917,2]
[329641464,1718533854009,-500.0,0.00021917,2]
[329641465,1718533854024,-503.9576494,0.00021917,2]
[329641466,1718533854040,-500.0,0.00021917,2]
[329641467,1718533854055,-500.0,0.00021917,2]
[329641468,1718533854066,-500.0,0.00021917,2]
[329641469,1718533854078,-266.70667213,0.00021917,2]
[329641470,1718533854375,-233.29332787,0.00021917,2]
[329641471,1718533854386,-500.0,0.00021917,2]
[329641472,1718533854397,-500.0,0.00021917,2]
[329641473,1718533854410,-500.0,0.00021917,2]
[329641474,1718533854442,-500.0,0.00021917,2]
[329641475,1718533854468,-500.0,0.00021917,2]
[329641476,1718533854487,-497.31886713,0.00021917,2]
[329641477,1718533854655,-2.68113287,0.00021917,2]
[329641478,1718533854670,-516.53435691,0.00021917,2]
[329641479,1718533854687,-500.0,0.00021917,2]
[329641480,1718533854701,-500.0,0.00021917,2]
[329641481,1718533854714,-559.57270274,0.00021917,2]
[329641482,1718533854756,-460.48050925,0.00021917,2]
[329641483,1718533854774,-500.0,0.00021917,2]
[329641484,1718533854790,-195.04150989,0.00021917,2]
[329641485,1718533854808,-511.84597368,0.00021917,2]
[329641486,1718533854825,-505.38543372,0.00021917,2]
[329641487,1718533854866,-500.0,0.00021917,2]
[329641488,1718533854896,-203.98471373,0.00021917,2]
[329641489,1718533854935,-500.0,0.00021917,2]
[329641490,1718533854975,-150.63822149,0.00021917,2]
[329641491,1718533855000,-568.67168181,0.00021917,2]
[329641492,1718533855021,-500.0,0.00021917,2]
[329641493,1718533855082,-259.77855503,0.00021917,2]
[329641494,1718533855095,-500.0,0.00021917,2]
[329641495,1718533855108,-500.0,0.00021917,2]
[329641496,1718533855121,-518.26738774,0.00021917,2]
[329641497,1718533855141,-502.1289275,0.00021917,2]
[329641498,1718533855152,-500.0,0.00021917,2]
[329641499,1718533855164,-500.0,0.00021917,2]
[329641500,1718533855178,-199.18529951,0.00021917,2]
[329641501,1718533855195,-198.9795612,0.00021917,2]
[329641502,1718533855212,-500.0,0.00021917,2]
[329641503,1718533855242,-500.0,0.00021917,2]
[329641504,1718533855255,-500.0,0.00021917,2]
[329641505,1718533855280,-500.0,0.00021917,2]
[329641506,1718533855298,-500.0,0.00021917,2]
[329641507,1718533855311,-500.0,0.00021917,2]
[329641508,1718533855352,-516.17621161,0.00021917,2]
[329641509,1718533855372,-338.9245797,0.00021917,2]
[329641510,1718533855413,-560.84424105,0.00021917,2]
[329641511,1718533855427,-500.0,0.00021917,2]
[329641512,1718533855451,-514.49678771,0.00021917,2]
[329641513,1718533855478,-407.30388272,0.00021917,2]
[329641514,1718533855507,-430.11032393,0.00021917,2]
[329641515,1718533855528,-500.0,0.00021917,2]
[329641516,1718533855542,-500.0,0.00021917,2]
[329641517,1718533855575,-501.11927133,0.00021917,2]
[329641518,1718533855589,-500.0,0.00021917,2]
[329641519,1718533855610,-500.0,0.00021917,2]
[329641520,1718533855634,-502.32440203,0.00021917,2]
[329641521,1718533855649,-500.0,0.00021917,2]
[329641522,1718533855665,-501.04316569,0.00021917,2]
[329641523,1718533855683,-468.81273132,0.00021917,2]
[329641524,1718533855700,-500.0,0.00021917,2]
[329641525,1718533855712,-294.63189872,0.00021917,2]
[329641526,1718533855790,-164.72210765,0.00021917,2]
[329641527,1718533855814,-195.36023799,0.00021917,2]
[329641533,1718534151979,1903.77787273,0.0001,2]
[329641556,1718534830546,155.0,0.0001,2]
[329641557,1718534833355,-151.0,0.00011306,2]
[329641558,1718534833397,-429.4,0.00011307,2]
[329641559,1718534833429,-193.8,0.00011798,2]
[329641560,1718534852258,155.54253155,0.0001,2]
[329641561,1718534852899,6515.6050931,0.0001,2]
[329641562,1718534921772,190.32,0.00010673,2]
[329641563,1718534954167,-2915.1286,0.00011797,2]
[329641564,1718534973286,-1309.5914,0.00011797,2]
[329641565,1718534973344,-19584.75610515,0.00011797,2]
[329641566,1718534973401,-150.0,0.00011799,2]
[329641567,1718534973459,-150.0,0.00011799,2]
[329641568,1718534973498,-150.0,0.00011799,2]
[329641569,1718534973535,-2005.80423533,0.000118,2]
[329641588,1718535039459,-7006.77109768,0.000118,2]
[329641589,1718535039489,-2247.36657682,0.000118,2]
[329641590,1718535039506,-210.0,0.00012979,2]
[329641591,1718535039555,-150.0,0.00013205,2]
[329641592,1718535039581,-4055.53342318,0.000134,2]
[329641593,1718535039610,-1933.69851311,0.000134,2]
[329641594,1718535039633,-1603.19806371,0.000134,2]
[329641595,1718535039644,-406.95,0.00013418,2]
[329641596,1718535039680,-2000.0,0.00013462,3]
[329641597,1718535039694,-775.8,0.0001357,2]
[329641598,1718535039706,-394.79276369,0.0001357,2]
[329641599,1718535039739,-34.60723631,0.0001357,2]
[329641600,1718535039780,-155.01,0.00013611,2]
[329641601,1718535039832,-816.13,0.00013693,2]
[329641602,1718535039852,-2616.21,0.00013699,2]
[329641603,1718535039895,-1933.6982214,0.00013699,2]
[329641604,1718535039919,-817.3017786,0.00013699,2]
[329641605,1718535039955,-532.56,0.00013699,2]
[329641606,1718535039978,-500.0,0.00013727,2]
[329641607,1718535039995,-250.0,0.00013754,2]
[329641608,1718535040029,-1000.0,0.00013798,2]
[329641609,1718535040050,-1755.12,0.00013895,2]
[329641610,1718535040065,-520.35208186,0.00013898,2]
[329641611,1718535040077,-886.64940994,0.00013898,2]
[329641612,1718535040091,-411.93500661,0.00013899,2]
[329641613,1718535040139,-37.37485943,0.00013899,2]
[329641614,1718535040163,-3698.16422758,0.000139,2]
[329641617,1718535040254,-6653.09767242,0.000139,2]
[329641618,1718535040269,-237742.1077,0.000139,2]
[329641619,1718535040294,-101842.4575,0.000139,2]
[329641620,1718535040336,-6068.925,0.000139,2]
[329641621,1718535040404,-250.0,0.00013987,2]
[329641622,1718535040450,-46125.86706474,0.00014,2]
[329641623,1718535040536,-2123.93814826,0.00014,2]
[329641624,1718535040570,-653.67901261,0.00014,2]
[329641625,1718535040595,-3082.03617125,0.00014,2]
[329641626,1718535040634,-7771.731751,0.00014,2]
[329641627,1718535040740,-5649.53764994,0.00014,2]
[329641628,1718535040815,-5854.9058077,0.00014,2]
[329641629,1718535040829,-1750.0,0.00014,2]
[329641630,1718535041118,-7260.12434325,0.00014,2]
[329641631,1718535041257,-6612.38196224,0.00014,2]
[329641632,1718535041407,-8564.2975044,0.00014,2]
[329641633,1718535041575,-3400.3900154,0.00014,2]
[329641634,1718535041805,-469.02406266,0.00014,2]
[329641635,1718535041822,-2367.55332881,0.00014,2]
[329641646,1718535043943,-19981.13093195,0.00014,2]
[329641647,1718535044236,-411.89588285,0.00014,2]
[329641648,1718535044265,-880.188012,0.00014,2]
[329641649,1718535044288,-512.0,0.00014,2]
[329641650,1718535044310,-9993.39194203,0.00014,2]
[329641651,1718535044330,-1129.10829927,0.00014,2]
[329641652,1718535044403,-1034.268095,0.00014,2]
[329641655,1718535045257,-250.88068151,0.00014,2]
[329641656,1718535045580,-567.43227914,0.00014,2]
[329641657,1718535045786,-22568.93764906,0.00014,2]
[329641658,1718535046107,-6387.72261102,0.00014,2]
[329641659,1718535046131,-317748.82727062,0.00014,2]
[329641660,1718535046154,-6933.01282375,0.00014,2]
[329641661,1718535046175,-2265.82411824,0.00014,2]
[329641662,1718535046191,-31090.26631584,0.00014,2]
[329641663,1718535046234,-345.49999998,0.00014,2]
[329641664,1718535046253,-511281.75518049,0.00014,2]
[329641665,1718535046267,-592.60230185,0.00014,2]
[329641666,1718535046281,-7171.6972,0.00014,2]
[329641667,1718535046403,-593.67599803,0.00014,2]
[329641681,1718535046965,-1868.97347,0.00014,2]
[329641683,1718535046989,-4737.26219031,0.00014,2]
[329641688,1718535047044,-1466.79589,0.00014,2]
[329641689,1718535047072,-1053.97752454,0.00014,2]
[329641694,1718535047204,-3132.62260289,0.00014,2]
[329641697,1718535047236,-470.89476816,0.00014,2]
[329641702,1718535047326,-373.5132,0.00014,2]
[329641704,1718535047378,-465.98333125,0.00014,2]
[329641706,1718535047391,-1358.52,0.00014,2]
[329641714,1718535047548,-13686.26738999,0.00014,2]
[329641716,1718535047574,-2779.006262,0.00014,2]
[329641720,1718535047892,-3492.00231187,0.00014,2]
[329641721,1718535047937,-2783.34432458,0.00014,2]
[329641729,1718535049288,-2752.78063989,0.00014,2]
[329641731,1718535049318,-11320.4239832,0.00014,2]
[329641732,1718535049427,-497.5799971,0.00014,2]
[329641733,1718535049464,-2467.95071058,0.00014,2]
[329641734,1718535049536,-1328.225,0.00014,2]
[329641735,1718535049588,-820.03564066,0.00014,2]
[329641736,1718535049619,-283.43121178,0.00014,2]
[329641737,1718535049640,-702.3456205,0.00014,2]
[329641738,1718535049654,-3984.8566,0.00014,2]
[329641741,1718535050004,-1154.23814551,0.00014,2]
[329641749,1718535096724,1050.0,0.000105,2]
[329641750,1718535149803,155.08477276,0.000105,2]
[329641751,1718535153183,551.95124722,0.000105,2]
[329641752,1718535154505,299.97320991,0.000105,2]
[329641753,1718535156024,19793.50088991,0.000105,2]
[329641754,1718535158057,180.84144565,0.000105,2]
[329641755,1718535162469,4763.75015336,0.000105,2]
[329641756,1718535168853,301.01979997,0.000105,2]
[329641757,1718535169174,649.41867986,0.000105,2]
[329641758,1718535172047,4474.0325771,0.000105,2]
[329641759,1718535176564,299.97320991,0.000105,2]
[329641760,1718535178074,181.2120062,0.000105,2]
[329641761,1718535194506,400.94405032,0.000105,2]
[329641762,1718535209861,251.061619,0.000273,63]
[329641763,1718535211783,251.061619,0.000273,63]
[329641764,1718535212688,251.061619,0.000273,63]
[329641765,1718535213730,251.061619,0.000273,63]
[329641766,1718535214323,251.061619,0.000273,63]
[329641767,1718535215389,251.061619,0.000273,63]
[329641768,1718535216025,251.061619,0.000273,63]
[329641769,1718535216820,251.061619,0.000273,63]
[329641770,1718535217601,251.061619,0.000273,63]
[329641771,1718535218416,251.061619,0.000273,63]
[329641772,1718535219265,251.061619,0.000273,63]
[329641773,1718535220078,251.061619,0.000273,63]
[329641774,1718535220926,251.061619,0.000273,63]
[329641775,1718535221748,251.061619,0.000273,63]
[329641776,1718535222665,251.061619,0.000273,63]
[329641777,1718535223406,251.061619,0.000273,63]
[329641779,1718535230400,251.061619,0.000273,64]
[329641780,1718535231289,251.061619,0.000273,64]
[329641781,1718535232083,251.061619,0.000273,64]
[329641782,1718535232908,251.061619,0.000273,64]
[329641783,1718535241160,157.061619,0.000273,64]
[329641784,1718535241977,157.061619,0.000273,64]
[329641785,1718535242743,157.061619,0.000273,64]
[329641786,1718535243548,157.061619,0.000273,64]
[329641787,1718535244256,157.061619,0.000273,64]
[329641788,1718535245089,157.061619,0.000273,64]
[329641789,1718535245816,157.061619,0.000273,64]
[329641790,1718535246688,157.061619,0.000273,64]
[329641791,1718535251323,157.061619,0.000273,65]
[329641792,1718535252161,157.061619,0.000273,65]
[329641793,1718535253084,157.061619,0.000273,65]
[329641794,1718535253888,157.061619,0.000273,65]
[329641795,1718535254645,157.061619,0.000273,65]
[329641796,1718535255564,157.061619,0.000273,65]
[329641797,1718535256359,157.061619,0.000273,65]
[329641798,1718535257243,157.061619,0.000273,65]
[329641799,1718535259636,157.061619,0.000273,65]
[329641800,1718535270340,157.061619,0.000273,66]
[329641801,1718535271280,157.061619,0.000273,66]
[329641802,1718535271971,157.061619,0.000273,66]
[329641803,1718535272762,157.061619,0.000273,66]
[329641804,1718535273755,157.061619,0.000273,66]
[329641805,1718535274323,157.061619,0.000273,66]
[329641806,1718535275136,157.061619,0.000273,66]
[329641807,1718535275950,157.061619,0.000273,66]
[329641808,1718535276713,157.061619,0.000273,66]
[329641809,1718535277625,157.061619,0.000273,66]
[329641810,1718535283105,211.23,0.00027,30]
[329641811,1718535326649,157.061619,0.000273,67]
[329641812,1718535327561,157.061619,0.000273,67]
[329641813,1718535328225,157.061619,0.000273,67]
[329641814,1718535328865,157.061619,0.000273,67]
[329641815,1718535329629,157.061619,0.000273,67]
[329641816,1718535330432,157.061619,0.000273,67]
[329641817,1718535331191,157.061619,0.000273,67]
[329641818,1718535331979,157.061619,0.000273,67]
[329641819,1718535332848,157.061619,0.000273,67]
[329641820,1718535333533,157.061619,0.000273,67]
[329641821,1718535334332,157.061619,0.000273,67]
[329641822,1718535335062,157.061619,0.000273,67]
[329641823,1718535335864,157.061619,0.000273,67]
[329641824,1718535369588,157.061619,0.000273,70]